[Event "Vasteras Open Minor 2018"]
[Site "Vasteras"]
[Date "2018.09.29"]
[Round "5"]
[White "Davidsson, Joshua"]
[Black "Arnason, Saemundur"]
[Result "1-0"]
[ECO "B90"]
[WhiteElo "1500"]
[BlackElo "1312"]
[Annotator "NA RC"]
[PlyCount "99"]
[EventDate "2018.09.28"]
[EventCountry "SWE"]
[SourceTitle "playchess.com"]
[Source "ChessBase"]
[SourceQuality "1"]
[TimeControl "5400+30"]

1. e4 {[%emt 0:00:00]} c5 {[%emt 0:00:00]} 2. Nf3 {[%emt 0:00:14]} d6 {[%emt 0:00:10]} 3. d4 {[%emt 0:00:27]} cxd4 {[%emt 0:00:06]} 4. Nxd4 {[%emt 0:00:02]} Nf6 {[%emt 0:00:08]} 5. Nc3 {[%emt 0:00:22]} a6 {[%emt 0:01:01]} 6. Be3 g6 {[%emt 0:00:49]} 7. Bd3 {[%emt 0:01:36]} Bg7 {[%emt 0:01:38]} 8. h3 {[%emt 0:02:11]} O-O {[%emt 0:00:58]} 9. Qd2 {[%emt 0:00:34]} b5 {[%emt 0:03:09]} 10. Bh6 {[%emt 0:01:14]} Bb7 {[%emt 0:00:42]} 11. h4 {[%emt 0:01:49]} Qb6 {[%emt 0:02:17]} 12. Nf3 {[%emt 0:01:17]} Nbd7 {[%emt 0:04:31]} 13. h5 {[%emt 0:01:50]} Bxh6 {[%emt 0:06:39]} 14. Qxh6 {[%emt 0:00:34]} Ng4 {[%emt 0:00:18]} 15. Qd2 {[%emt 0:00:54]} Kg7 {[%emt 0:01:47]} 16. Nh2 {[%emt 0:03:07]} Nde5 {[%emt 0:03:32]} 17. Nxg4 {[%emt 0:00:44]} Nxg4 {[%emt 0:00:27]} 18. f3 {[%emt 0:00:24]} Nf6 19. hxg6 {[%emt 0:01:07]} fxg6 {[%emt 0:01:49]} 20. O-O-O {[%emt 0:00:43]} Rh8 {[%emt 0:02:42]} 21. Nd5 {[%emt 0:02:13]} Bxd5 {[%emt 0:00:51]} 22. exd5 {[%emt 0:01:07]} Nxd5 {[%emt 0:01:39]} 23. Bxg6 {[%emt 0:03:12]} Qe3 {[%emt 0:00:15]} 24. Be4 {[%emt 0:00:19]} Qxd2+ {[%emt 0:00:57]} 25. Rxd2 {[%emt 0:00:01]} e6 {[%emt 0:01:32]} 26. Bxd5 {[%emt 0:00:15]} exd5 {[%emt 0:00:09]} 27. Rxd5 {[%emt 0:00:09]} Rad8 {[%emt 0:01:02]} 28. Rhd1 {[%emt 0:00:17]} Rhe8 {[%emt 0:00:51]} 29. Rxd6 {[%emt 0:00:29]} Rxd6 {[%emt 0:00:11]} 30. Rxd6 {[%emt 0:00:01]} Re1+ {[%emt 0:00:05]} 31. Kd2 {[%emt 0:00:19]} Rg1 {[%emt 0:00:39]} 32. g4 {[%emt 0:01:55]} Rg2+ {[%emt 0:00:08]} 33. Kd3 {[%emt 0:00:42]} Rf2 {[%emt 0:00:26]} 34. Rxa6 {[%emt 0:00:23]} Rxf3+ {[%emt 0:00:11]} 35. Ke2 {[%emt 0:00:11]} Rg3 {[%emt 0:00:17]} 36. Rb6 {[%emt 0:00:20]} Rxg4 {[%emt 0:00:34]} 37. Rxb5 {[%emt 0:00:04]} Rg2+ {[%emt 0:00:12]} 38. Kd3 {[%emt 0:00:09]} Rh2 {[%emt 0:01:51]} 39. a4 {[%emt 0:00:21]} h5 {[%emt 0:01:05]} 40. a5 {[%emt 0:00:24]} h4 {[%emt 0:00:17]} 41. Rb3 {[%emt 0:01:05]} Rh3+ {[%emt 0:00:33]} 42. Ke2 {[%emt 0:00:33]} Rh2+ {[%emt 0:00:49]} 43. Kf1 {[%emt 0:00:25]} Rxc2 {[%emt 0:00:20]} 44. a6 {[%emt 0:00:37]} Rc8 {[%emt 0:00:14]} 45. Ra3 {[%emt 0:01:40]} Ra8 {[%emt 0:00:44]} 46. b4 {[%emt 0:00:15]} Kf7 {[%emt 0:00:55]} 47. b5 {[%emt 0:00:25]} Ke7 {[%emt 0:00:08]} 48. b6 {[%emt 0:00:20]} h3 {[%emt 0:01:02]} 49. b7 {[%emt 0:00:58]} Rb8 {[%emt 0:00:25]} 50. Rxh3 {[%emt 0:00:30]} 1-0

[Event "Vasteras Open Minor 2018"]
[Site "Vasteras"]
[Date "2018.09.29"]
[Round "5"]
[White "Ohlund, Anders"]
[Black "Gerdes, Sebastian"]
[Result "1/2-1/2"]
[ECO "D02"]
[WhiteElo "1483"]
[BlackElo "1301"]
[Annotator "NA RC"]
[PlyCount "64"]
[EventDate "2018.09.28"]
[EventCountry "SWE"]
[SourceTitle "playchess.com"]
[Source "ChessBase"]
[SourceQuality "1"]
[TimeControl "5400+30"]

1. d4 {[%emt 0:00:00]} d5 {[%emt 0:00:00]} 2. Nf3 {[%emt 0:00:00]} Bf5 {[%emt 0:00:00]} 3. Bf4 {[%emt 0:00:46]} Nf6 {[%emt 0:00:28]} 4. e3 {[%emt 0:01:08]} e6 {[%emt 0:00:56]} 5. Bd3 {[%emt 0:01:11]} Bg6 {[%emt 0:00:13]} 6. h3 {[%emt 0:02:45]} Nbd7 {[%emt 0:03:24]} 7. O-O {[%emt 0:02:49]} c5 {[%emt 0:02:45]} 8. c3 {[%emt 0:03:39]} Ne4 {[%emt 0:03:58]} 9. Bc2 {[%emt 0:04:52]} Ndf6 {[%emt 0:03:39]} 10. Nbd2 {[%emt 0:03:20]} Rc8 {[%emt 0:03:07]} 11. Re1 {[%emt 0:03:37]} Bd6 {[%emt 0:00:42]} 12. Ba4+ {[%emt 0:02:14]} Ke7 {[%emt 0:05:35]} 13. Bxd6+ {[%emt 0:03:21]} Qxd6 {[%emt 0:00:09]} 14. Ne5 {[%emt 0:02:07]} Nxd2 {[%emt 0:01:07]} 15. Qxd2 {[%emt 0:00:15]} Ne4 {[%emt 0:02:38]} 16. Qe2 {[%emt 0:03:18]} c4 {[%emt 0:01:18]} 17. Bc2 {[%emt 0:04:52]} f6 {[%emt 0:00:25]} 18. Nxg6+ {[%emt 0:01:21]} hxg6 {[%emt 0:00:10]} 19. Bxe4 {[%emt 0:02:08]} dxe4 {[%emt 0:00:21]} 20. Qg4 {[%emt 0:01:05]} Kf7 {[%emt 0:01:05]} 21. Qxe4 {[%emt 0:00:34]} Qb6 {[%emt 0:01:19]} 22. Re2 {[%emt 0:03:34]} Rh5 {[%emt 0:01:41]} 23. Rd1 {[%emt 0:04:07]} Rd8 {[%emt 0:03:58]} 24. Rdd2 {[%emt 0:01:51]} g5 {[%emt 0:03:08]} 25. Qg4 {[%emt 0:03:11]} Rh4 {[%emt 0:00:45]} 26. Qg3 {[%emt 0:00:33]} Qc6 {[%emt 0:01:10]} 27. f3 {[%emt 0:01:06]} Qa6 {[%emt 0:02:51]} 28. a3 {[%emt 0:01:24]} Qb5 {[%emt 0:06:29]} 29. e4 {[%emt 0:03:58]} Kg6 {[%emt 0:09:07]} 30. Qf2 {[%emt 0:05:19]} a6 {[%emt 0:02:59]} 31. Qe3 {[%emt 0:03:33]} Qc6 {[%emt 0:03:57]} 32. e5 {[%emt 0:01:17]} f5 {[%emt 0:00:10]} 1/2-1/2

[Event "Vasteras Open Minor 2018"]
[Site "Vasteras"]
[Date "2018.09.29"]
[Round "5"]
[White "Urbel, Aavo"]
[Black "Flykt, Gabriel"]
[Result "0-1"]
[ECO "A46"]
[WhiteElo "1436"]
[BlackElo "1584"]
[Annotator "NA RC"]
[PlyCount "54"]
[EventDate "2018.09.28"]
[EventCountry "SWE"]
[SourceTitle "playchess.com"]
[Source "ChessBase"]
[SourceQuality "1"]
[TimeControl "5400+30"]

1. d4 {[%emt 0:00:00]} e6 {[%emt 0:00:00]} 2. Nf3 {[%emt 0:00:00]} Nf6 {[%emt 0:01:55]} 3. e3 {[%emt 0:00:07]} c5 {[%emt 0:01:43]} 4. c4 {[%emt 0:01:43]} d6 {[%emt 0:02:16]} 5. Nc3 {[%emt 0:00:34]} Be7 {[%emt 0:01:38]} 6. g3 {[%emt 0:00:10]} b6 {[%emt 0:03:54]} 7. Bg2 {[%emt 0:00:13]} Bb7 {[%emt 0:03:13]} 8. O-O {[%emt 0:00:20]} O-O {[%emt 0:00:34]} 9. Qc2 {[%emt 0:01:05]} Qc7 {[%emt 0:01:06]} 10. b3 {[%emt 0:01:58]} a6 {[%emt 0:01:49]} 11. a4 {[%emt 0:00:41]} Nc6 {[%emt 0:02:38]} 12. Ba3 {[%emt 0:03:05]} Nb4 {[%emt 0:04:54]} 13. Bxb4 {[%emt 0:00:18]} cxb4 {[%emt 0:00:11]} 14. Ne2 {[%emt 0:01:40]} Be4 {[%emt 0:03:19]} 15. Qd2 {[%emt 0:01:28]} Qb7 {[%emt 0:01:52]} 16. Ne1 {[%emt 0:03:22]} Bxg2 {[%emt 0:02:24]} 17. Nxg2 {[%emt 0:00:05]} d5 {[%emt 0:00:30]} 18. Rac1 {[%emt 0:03:14]} Rfc8 {[%emt 0:01:28]} 19. Rc2 {[%emt 0:00:50]} Rc7 {[%emt 0:00:08]} 20. Rfc1 {[%emt 0:00:15]} Rac8 {[%emt 0:00:07]} 21. f3 {[%emt 0:01:47]} dxc4 {[%emt 0:01:31]} 22. Rxc4 {[%emt 0:00:29]} Rxc4 23. Rxc4 {[%emt 0:00:04]} Rxc4 {[%emt 0:00:23]} 24. bxc4 {[%emt 0:00:24]} Qxf3 {[%emt 0:00:05]} 25. Qc2 {[%emt 0:04:52]} Ng4 {[%emt 0:02:47]} 26. c5 {[%emt 0:06:06]} Qf2+ {[%emt 0:03:14]} 27. Kh1 {[%emt 0:00:21]} Qf1+ {[%emt 0:00:08]} 0-1

[Event "Vasteras Open Minor 2018"]
[Site "Vasteras"]
[Date "2018.09.29"]
[Round "6"]
[White "Nilsson, Ulf"]
[Black "Lofgren, John"]
[Result "0-1"]
[ECO "B01"]
[WhiteElo "2001"]
[BlackElo "1511"]
[Annotator "NA RC"]
[PlyCount "78"]
[EventDate "2018.09.28"]
[EventCountry "SWE"]
[SourceTitle "playchess.com"]
[Source "ChessBase"]
[SourceQuality "1"]
[TimeControl "5400+30"]

{[%evp 8,78,64,61,57,26,58,18,21,20,27,15,39,-2,9,-82,-66,-97,-87,-120,-130,-132,-151,-140,-118,-109,-42,-139,-103,-114,-96,-74,-95,-93,-90,-93,-105,-108,32767,32767,32767,32767,32767,32767,32767,-94,-89,-114,-102,-101,-44,-107,-102,-162,-133,-182,-141,-1074,-1292,-29988,-29989,-29989,-557,-29990,-29991,-29992,-29993,-29993,-643,-2850,-2410,-29998,-29999]} 1. e4 {[%emt 0:00:00]} d5 {[%emt 0:00:00]} 2. exd5 {[%emt 0:00:00]} Qxd5 {[%emt 0:00:00]} 3. Nc3 {[%emt 0:00:11]} Qa5 {[%emt 0:00:00]} 4. d4 {[%emt 0:01:03]} Bf5 {[%emt 0:00:00]} 5. Nf3 {[%emt 0:02:53] B01: Scandinavian Defence} Nd7 {[%emt 0:00:09]} 6. Bd2 {[%emt 0:02:33]} c6 {[%emt 0:00:09]} 7. Be2 {[%emt 0:02:40]} (7. Bc4 e6 8. Qe2 Bb4 9. a3 Ne7 10. O-O Bxc3 11. Bxc3 Qc7 12. Nh4 Nb6 13. d5 Qf4 14. Nxf5 Nxf5 {1-0 (38) Korneev,O (2561)-Kogan,A (2534) Port Erin 2003}) 7... Ngf6 {[%emt 0:00:27]} 8. O-O {[%emt 0:04:04]} e6 {[%emt 0:01:33] LiveBook: 5 Games} 9. Re1 {[%emt 0:05:32]} Qc7 {[%emt 0:00:39]} 10. Bc4 {[%emt 0:03:41]} O-O-O $146 {[%emt 0:04:30]} ({Predecessor:} 10... Bd6 11. h3 h6 12. Bb3 O-O 13. Qe2 Rad8 {½-½ (65) Milonakis,G (2213)-Simeonidis,I (2238) Anogia 2013}) 11. Ng5 {[%emt 0:07:36]} (11. Bd3 $11 {remains equal.}) 11... Nb6 {[%emt 0:01:47]} 12. Bb3 {[%emt 0:00:47]} Rxd4 {[%emt 0:04:15]} 13. Ne2 {[%emt 0:03:05]} Rd7 {[%emt 0:03:15]} ({Much weaker is} 13... Rh4 $6 14. g3 $11) 14. Qc1 {[%emt 0:01:51]} Bd6 {[%emt 0:01:19]} 15. Bf4 {[%emt 0:03:17]} h6 {[%emt 0:02:05]} 16. Nf3 {[%emt 0:01:32]} e5 {[%emt 0:02:40]} ({Better is} 16... Bxf4 $17 17. Qxf4 Qxf4 18. Nxf4 Rf8) 17. Bg3 {[%emt 0:01:58]} ({White should try} 17. Ng3 $15) 17... Bg4 {[%emt 0:02:44]} 18. Qe3 {[%emt 0:02:39]} Bxf3 {[%emt 0:09:17]} 19. Qxf3 {[%emt 0:02:14]} h5 {[%emt 0:08:31]} 20. h3 {[%emt 0:00:51]} Nbd5 {[%emt 0:01:49]} 21. Nc3 {[%emt 0:01:13]} h4 {[%emt 0:05:22]} 22. Bh2 {[%emt 0:02:42]} Nxc3 {[%emt 0:01:29]} 23. Qxc3 {[%emt 0:01:10]} e4 {[%emt 0:01:13]} 24. Bxd6 {[%emt 0:02:05]} Rxd6 {[%emt 0:01:46]} 25. Qc5 {[%emt 0:01:22]} b6 {[%emt 0:02:40]} 26. Qe5 {[%emt 0:03:54]} Rh5 {[%emt 0:01:31]} 27. Qf4 {[%emt 0:02:48]} Rd7 {[%emt 0:03:57]} 28. Qe3 {[%emt 0:02:54]} g5 {[%emt 0:03:10]} (28... Rf5 $17) 29. c4 {[%emt 0:03:42]} ({Better is} 29. f3 $15) 29... g4 {[%emt 0:01:30]} 30. Bd1 {[%emt 0:00:43]} (30. Rad1 $17) 30... Rd3 {[%emt 0:00:49]} 31. Qc1 {[%emt 0:03:46]} Rf5 {[%emt 0:19:03]} 32. hxg4 $2 {[%emt 0:08:54] [#]} (32. Bxg4 $17 Nxg4 33. hxg4) 32... Rxf2 $3 {[%emt 0:01:42]} 33. Kxf2 {[%emt 0:01:15]} Qg3+ {[%emt 0:00:04]} 34. Kg1 {[%emt 0:03:02]} Qxe1+ {[%emt 0:00:11]} 35. Kh2 {[%emt 0:00:34]} Qg3+ {[%emt 0:00:22]} 36. Kg1 {[%emt 0:00:49]} h3 {[%emt 0:01:47]} 37. Qc2 {[%emt 0:00:34]} Qe1+ {[%emt 0:00:25]} (37... Re3 $142 38. Bf3 exf3 39. Rd1 Ne4 40. Rd8+ Kxd8 41. Qd1+ Ke7 42. Qf1 Re1 43. Kh1 Rxf1#) 38. Kh2 {[%emt 0:00:26]} Rd2 {[%emt 0:00:14]} 39. Qc3 {[%emt 0:00:59]} Rxg2+ {[%emt 0:00:14]} 0-1

[Event "Vasteras Open Minor 2018"]
[Site "Vasteras"]
[Date "2018.09.29"]
[Round "6"]
[White "Flykt, Gabriel"]
[Black "Jonsson, Kristjan Dagur"]
[Result "1-0"]
[ECO "A17"]
[WhiteElo "1584"]
[BlackElo "1267"]
[Annotator "NA RC"]
[PlyCount "93"]
[EventDate "2018.09.28"]
[EventCountry "SWE"]
[SourceTitle "playchess.com"]
[Source "ChessBase"]
[SourceQuality "1"]
[TimeControl "5400+30"]

1. c4 {[%emt 0:00:00]} Nf6 {[%emt 0:00:00]} 2. Nc3 {[%emt 0:00:00]} e6 {[%emt 0:00:37]} 3. g3 {[%emt 0:02:57]} Bb4 {[%emt 0:03:12]} 4. Bg2 {[%emt 0:01:24]} O-O {[%emt 0:01:17]} 5. e4 {[%emt 0:00:40]} Bxc3 {[%emt 0:02:43]} 6. bxc3 {[%emt 0:01:29]} d6 {[%emt 0:04:04]} 7. Ne2 {[%emt 0:02:23]} d5 {[%emt 0:02:25]} 8. cxd5 {[%emt 0:01:18]} exd5 {[%emt 0:00:48]} 9. exd5 {[%emt 0:01:10]} Nxd5 {[%emt 0:01:07]} 10. O-O {[%emt 0:00:35]} c6 {[%emt 0:05:32]} 11. d4 {[%emt 0:05:58]} Bg4 {[%emt 0:03:27]} 12. f3 {[%emt 0:06:25]} Bf5 {[%emt 0:02:13]} 13. Bd2 {[%emt 0:02:34]} Re8 {[%emt 0:07:21]} 14. Nf4 {[%emt 0:02:50]} Ne3 {[%emt 0:05:03]} 15. Bxe3 {[%emt 0:00:14]} Rxe3 {[%emt 0:00:19]} 16. Qd2 {[%emt 0:00:40]} Re7 {[%emt 0:02:29]} 17. Rfe1 {[%emt 0:02:23]} Nd7 {[%emt 0:05:20]} 18. g4 {[%emt 0:03:47]} Bg6 {[%emt 0:02:33]} 19. Nxg6 {[%emt 0:00:14]} hxg6 {[%emt 0:00:43]} 20. Bf1 {[%emt 0:11:05]} Rxe1 {[%emt 0:03:45]} 21. Rxe1 {[%emt 0:00:23]} Nf6 {[%emt 0:01:40]} 22. Bc4 {[%emt 0:02:19]} b5 {[%emt 0:03:58]} 23. Bb3 {[%emt 0:00:33]} a5 {[%emt 0:02:27]} 24. a4 {[%emt 0:07:59]} Qd6 {[%emt 0:06:51]} 25. Qa2 {[%emt 0:04:49]} Qf8 {[%emt 0:03:01]} 26. axb5 {[%emt 0:03:12]} cxb5 {[%emt 0:01:11]} 27. Re5 {[%emt 0:00:55]} a4 {[%emt 0:01:13]} 28. Bc2 {[%emt 0:00:24]} b4 {[%emt 0:00:56]} 29. Bxa4 {[%emt 0:05:04]} bxc3 {[%emt 0:00:52]} 30. Qc4 {[%emt 0:03:24]} Qa3 {[%emt 0:03:50]} 31. Bb3 {[%emt 0:02:11]} Qc1+ {[%emt 0:02:33]} 32. Kg2 {[%emt 0:00:34]} Ra1 {[%emt 0:02:40]} 33. Kg3 {[%emt 0:11:00]} g5 {[%emt 0:05:17]} 34. Qxf7+ {[%emt 0:04:52]} Kh7 {[%emt 0:01:24]} 35. Re2 {[%emt 0:01:06]} Qg1+ {[%emt 0:03:38]} 36. Rg2 {[%emt 0:02:00]} Qxd4 {[%emt 0:01:27]} 37. Bc2+ {[%emt 0:00:41]} Kh8 {[%emt 0:01:11]} 38. Qf8+ {[%emt 0:00:18]} Ng8 {[%emt 0:01:04]} 39. Bb3 {[%emt 0:01:05]} Ra8 {[%emt 0:02:00]} 40. Qxa8 {[%emt 0:01:00]} Qd6+ {[%emt 0:00:29]} 41. f4 {[%emt 0:03:15]} gxf4+ {[%emt 0:01:05]} 42. Kf3 {[%emt 0:00:13]} Qd3+ {[%emt 0:01:06]} 43. Kxf4 {[%emt 0:00:30]} g5+ {[%emt 0:01:13]} 44. Kxg5 {[%emt 0:00:35]} Qb5+ {[%emt 0:00:35]} 45. Qd5 {[%emt 0:00:14]} Qe8 {[%emt 0:01:06]} 46. Qd4+ {[%emt 0:00:18]} Kh7 {[%emt 0:00:40]} 47. Bc2+ {[%emt 0:00:06]} 1-0

[Event "Vasteras Open Minor 2018"]
[Site "Vasteras"]
[Date "2018.09.29"]
[Round "6"]
[White "Olsson, Dick"]
[Black "Evensen, Per-Erik"]
[Result "1-0"]
[ECO "B54"]
[WhiteElo "1554"]
[BlackElo "1472"]
[Annotator "NA RC"]
[PlyCount "55"]
[EventDate "2018.09.28"]
[EventCountry "SWE"]
[SourceTitle "playchess.com"]
[Source "ChessBase"]
[SourceQuality "1"]
[TimeControl "5400+30"]

1. e4 {[%emt 0:00:00]} c5 {[%emt 0:00:00]} 2. Nf3 {[%emt 0:00:00]} d6 {[%emt 0:00:15]} 3. d4 {[%emt 0:00:05]} cxd4 {[%emt 0:00:13]} 4. Nxd4 {[%emt 0:00:13]} Nc6 {[%emt 0:00:17]} 5. Nxc6 {[%emt 0:00:35]} bxc6 {[%emt 0:00:12]} 6. Bd3 {[%emt 0:00:27]} g6 {[%emt 0:01:07]} 7. O-O {[%emt 0:01:44]} Bg7 {[%emt 0:00:45]} 8. Nc3 {[%emt 0:01:19]} Nf6 {[%emt 0:01:50]} 9. h3 {[%emt 0:03:12]} O-O {[%emt 0:00:53]} 10. f4 {[%emt 0:02:24]} Qb6+ {[%emt 0:02:55]} 11. Kh1 {[%emt 0:00:13]} Bb7 {[%emt 0:02:15]} 12. f5 {[%emt 0:06:50]} Nh5 {[%emt 0:03:53]} 13. Qg4 {[%emt 0:02:20]} Be5 {[%emt 0:04:52]} 14. Ne2 {[%emt 0:02:11]} Bg7 {[%emt 0:02:10]} 15. c3 {[%emt 0:02:59]} Nf6 {[%emt 0:00:57]} 16. Qh4 {[%emt 0:01:19]} Ba6 {[%emt 0:03:34]} 17. Qg3 {[%emt 0:06:29]} Nd7 {[%emt 0:03:04]} 18. Rb1 {[%emt 0:03:25]} Ne5 {[%emt 0:03:20]} 19. Be3 {[%emt 0:04:34]} Qb7 {[%emt 0:01:10]} 20. Bxa6 {[%emt 0:05:12]} Qxa6 {[%emt 0:00:13]} 21. Nd4 {[%emt 0:00:30]} Rab8 {[%emt 0:02:26]} 22. fxg6 {[%emt 0:03:55]} fxg6 {[%emt 0:08:17]} 23. Rxf8+ {[%emt 0:02:41]} Rxf8 24. a3 Rf1+ 25. Rxf1 Qxf1+ 26. Kh2 Nd3 27. Nxc6 Ne5 28. Nxe7+ 1-0

[Event "Vasteras Open Minor 2018"]
[Site "Vasteras"]
[Date "2018.09.29"]
[Round "6"]
[White "Davidsson, Joshua"]
[Black "Laine, Jacob"]
[Result "1-0"]
[ECO "C50"]
[WhiteElo "1500"]
[BlackElo "1591"]
[Annotator "NA RC"]
[PlyCount "75"]
[EventDate "2018.09.28"]
[EventCountry "SWE"]
[SourceTitle "playchess.com"]
[Source "ChessBase"]
[SourceQuality "1"]
[TimeControl "5400+30"]

1. e4 {[%emt 0:00:00]} e5 {[%emt 0:00:00]} 2. Nf3 {[%emt 0:00:06]} Nc6 {[%emt 0:00:00]} 3. Bc4 {[%emt 0:00:44]} Bc5 {[%emt 0:00:00]} 4. d3 {[%emt 0:00:25]} Nf6 5. Bg5 d6 {[%emt 0:01:21]} 6. h3 {[%emt 0:00:42]} h6 {[%emt 0:00:05]} 7. Bh4 {[%emt 0:00:07]} g5 {[%emt 0:00:02]} 8. Bg3 {[%emt 0:00:16]} Bd7 {[%emt 0:06:01]} 9. Nc3 {[%emt 0:00:30]} Na5 {[%emt 0:00:57]} 10. a3 {[%emt 0:02:53]} Nxc4 {[%emt 0:00:33]} 11. dxc4 {[%emt 0:00:02]} Qe7 {[%emt 0:02:00]} 12. b4 {[%emt 0:00:54]} Bb6 {[%emt 0:00:17]} 13. Qd3 {[%emt 0:00:55]} a5 {[%emt 0:07:08]} 14. O-O {[%emt 0:05:51]} Qe6 {[%emt 0:03:31]} 15. Nd5 {[%emt 0:04:28]} Nxd5 {[%emt 0:01:12]} 16. cxd5 {[%emt 0:03:12]} Qg6 {[%emt 0:01:57]} 17. c4 {[%emt 0:01:23]} f6 {[%emt 0:01:15]} 18. Qc2 {[%emt 0:02:51]} axb4 {[%emt 0:10:42]} 19. axb4 {[%emt 0:00:22]} Kf7 {[%emt 0:02:04]} 20. c5 {[%emt 0:01:04]} dxc5 {[%emt 0:00:20]} 21. bxc5 {[%emt 0:00:01]} Ba5 {[%emt 0:00:26]} 22. Qc4 {[%emt 0:05:08]} Kg7 {[%emt 0:09:38]} 23. Nxe5 {[%emt 0:05:06]} fxe5 {[%emt 0:01:15]} 24. Bxe5+ {[%emt 0:03:07]} Kh7 {[%emt 0:04:39]} 25. Bxh8 {[%emt 0:02:58]} g4 {[%emt 0:01:35]} 26. hxg4 {[%emt 0:01:51]} Bxg4 {[%emt 0:00:54]} 27. Be5 {[%emt 0:00:24]} h5 {[%emt 0:02:22]} 28. Bg3 {[%emt 0:06:48]} Bf3 {[%emt 0:01:46]} 29. gxf3 h4 {[%emt 0:01:36]} 30. Kh1 {[%emt 0:06:15]} hxg3 {[%emt 0:04:02]} 31. fxg3 {[%emt 0:01:46]} Rg8 {[%emt 0:02:55]} 32. g4 {[%emt 0:01:36]} Bd2 {[%emt 0:01:10]} 33. Kg2 {[%emt 0:01:01]} Qf6 {[%emt 0:02:16]} 34. Qd3 {[%emt 0:04:33]} Qf4 {[%emt 0:01:30]} 35. Rh1+ {[%emt 0:01:02]} Kg7 {[%emt 0:00:32]} 36. e5 {[%emt 0:02:00]} Rh8 {[%emt 0:01:21]} 37. Rxh8 {[%emt 0:00:51]} Kxh8 {[%emt 0:00:05]} 38. Rh1+ {[%emt 0:00:15]} 1-0

[Event "Vasteras Open Minor 2018"]
[Site "Vasteras"]
[Date "2018.09.29"]
[Round "6"]
[White "Seo, Jung Hyun"]
[Black "Urbel, Aavo"]
[Result "1-0"]
[ECO "B12"]
[WhiteElo "1389"]
[BlackElo "1436"]
[Annotator "NA RC"]
[PlyCount "107"]
[EventDate "2018.09.28"]
[EventCountry "SWE"]
[SourceTitle "playchess.com"]
[Source "ChessBase"]
[SourceQuality "1"]
[TimeControl "5400+30"]

1. e4 {[%emt 0:00:00]} c6 {[%emt 0:00:00]} 2. d4 {[%emt 0:00:00]} d5 {[%emt 0:00:00]} 3. e5 {[%emt 0:00:00]} g6 {[%emt 0:00:00]} 4. Nf3 {[%emt 0:00:22]} Bg4 {[%emt 0:00:13]} 5. h3 {[%emt 0:00:17]} Bf5 {[%emt 0:00:14]} 6. c4 {[%emt 0:01:24]} e6 {[%emt 0:01:05]} 7. Qb3 {[%emt 0:01:47]} b6 {[%emt 0:03:25]} 8. Nfd2 {[%emt 0:03:05]} h5 {[%emt 0:00:48]} 9. Nc3 {[%emt 0:00:48]} Nd7 {[%emt 0:02:44]} 10. Rg1 {[%emt 0:01:51]} Nh6 {[%emt 0:04:57]} 11. Be2 {[%emt 0:02:12]} g5 {[%emt 0:03:00]} 12. Bxh5 {[%emt 0:01:10]} g4 {[%emt 0:07:11]} 13. Bxg4 {[%emt 0:01:50]} Bxg4 {[%emt 0:00:36]} 14. hxg4 {[%emt 0:00:34]} Nxg4 {[%emt 0:00:18]} 15. Nf1 {[%emt 0:03:36]} Nh2 {[%emt 0:02:19]} 16. Be3 {[%emt 0:03:21]} Qh4 {[%emt 0:02:53]} 17. O-O-O {[%emt 0:05:12]} Bh6 {[%emt 0:03:04]} 18. Bxh6 {[%emt 0:11:00]} Qxh6+ {[%emt 0:00:40]} 19. Kb1 {[%emt 0:01:07]} Qg6+ {[%emt 0:00:29]} 20. Qc2 {[%emt 0:01:05]} Qxc2+ {[%emt 0:00:47]} 21. Kxc2 {[%emt 0:00:06]} Nxf1 22. Rgxf1 {[%emt 0:00:32]} dxc4 {[%emt 0:02:12]} 23. Ne4 {[%emt 0:00:06]} b5 {[%emt 0:03:09]} 24. Nd6+ {[%emt 0:00:17]} Ke7 {[%emt 0:00:16]} 25. a4 {[%emt 0:01:47]} a6 {[%emt 0:00:24]} 26. f4 {[%emt 0:00:31]} Rh2 {[%emt 0:00:40]} 27. Rf2 {[%emt 0:00:39]} Rg8 {[%emt 0:00:14]} 28. Rdd2 {[%emt 0:01:44]} f5 {[%emt 0:02:50]} 29. Kc3 {[%emt 0:01:46]} Nb6 {[%emt 0:03:19]} 30. axb5 {[%emt 0:02:06]} Nd5+ {[%emt 0:01:05]} 31. Kxc4 {[%emt 0:00:41]} cxb5+ {[%emt 0:01:01]} 32. Kc5 {[%emt 0:03:48]} Rh4 {[%emt 0:06:14]} 33. Nxf5+ {[%emt 0:01:41]} exf5 {[%emt 0:00:08]} 34. Kxd5 {[%emt 0:00:05]} Rc8 {[%emt 0:03:21]} 35. Rc2 {[%emt 0:05:00]} Rd8+ {[%emt 0:00:29]} 36. Kc5 {[%emt 0:01:53]} Ke6 {[%emt 0:05:03]} 37. Rcd2 {[%emt 0:01:17]} Rd5+ {[%emt 0:01:22]} 38. Kb4 {[%emt 0:03:24]} Rh8 {[%emt 0:01:14]} 39. Rf3 {[%emt 0:01:18]} Rhd8 {[%emt 0:00:33]} 40. Kc3 {[%emt 0:00:48]} a5 {[%emt 0:00:21]} 41. Rfd3 {[%emt 0:02:43]} Rc8+ {[%emt 0:01:40]} 42. Kb3 {[%emt 0:00:29]} Rc4 {[%emt 0:01:13]} 43. Ka2 {[%emt 0:01:41]} a4 {[%emt 0:01:55]} 44. b3 {[%emt 0:01:20]} axb3+ {[%emt 0:00:07]} 45. Kxb3 {[%emt 0:00:13]} Rc1 {[%emt 0:02:09]} 46. Rc2 {[%emt 0:00:45]} Rb1+ {[%emt 0:00:34]} 47. Rb2 {[%emt 0:01:22]} Rc1 {[%emt 0:00:52]} 48. Rc2 {[%emt 0:00:57]} Rb1+ {[%emt 0:00:03]} 49. Ka3 {[%emt 0:00:55]} Rd8 {[%emt 0:00:51]} 50. d5+ {[%emt 0:00:44]} Ke7 {[%emt 0:02:59]} 51. Rc7+ {[%emt 0:00:50]} Ke8 {[%emt 0:00:05]} 52. Ka2 {[%emt 0:00:19]} Rb4 {[%emt 0:00:33]} 53. g3 {[%emt 0:02:19]} Rb8 {[%emt 0:03:10]} 54. Rh7 {[%emt 0:01:19]} 1-0

[Event "Vasteras Open Minor 2018"]
[Site "Vasteras"]
[Date "2018.09.30"]
[Round "7"]
[White "Lofgren, John"]
[Black "Flykt, Gabriel"]
[Result "1-0"]
[ECO "C00"]
[WhiteElo "1511"]
[BlackElo "1584"]
[Annotator "NA RC"]
[PlyCount "35"]
[EventDate "2018.09.28"]
[EventCountry "SWE"]
[SourceTitle "playchess.com"]
[Source "ChessBase"]
[SourceQuality "1"]
[TimeControl "5400+30"]

1. e4 {[%emt 0:00:00]} e6 {[%emt 0:00:00]} 2. d4 {[%emt 0:00:00]} d5 {[%emt 0:00:00]} 3. Bd3 {[%emt 0:00:00]} dxe4 4. Bxe4 Nf6 {[%emt 0:07:26]} 5. Bf3 {[%emt 0:00:00]} c5 {[%emt 0:03:43]} 6. Ne2 {[%emt 0:01:50]} Nc6 {[%emt 0:04:01]} 7. Be3 Nd5 {[%emt 0:03:01]} 8. Bxd5 {[%emt 0:12:09]} exd5 {[%emt 0:00:50]} 9. dxc5 {[%emt 0:01:44]} Bxc5 {[%emt 0:00:53]} 10. Bxc5 {[%emt 0:00:30]} Qa5+ {[%emt 0:00:04]} 11. Nbc3 {[%emt 0:00:16]} Qxc5 {[%emt 0:00:08]} 12. Qxd5 {[%emt 0:00:37]} Qxd5 {[%emt 0:01:38]} 13. Nxd5 {[%emt 0:00:08]} O-O {[%emt 0:00:07]} 14. O-O-O {[%emt 0:04:37]} Be6 {[%emt 0:01:46]} 15. Nef4 {[%emt 0:02:57]} Rad8 {[%emt 0:10:17]} 16. f3 {[%emt 0:03:43]} Bxd5 {[%emt 0:04:11]} 17. Nxd5 {[%emt 0:00:54]} Rd7 {[%emt 0:00:42]} 18. Nf6+ {[%emt 0:00:29]} 1-0